Cogmind - Beta 11 *** ADVENTURER MODE // 2023.02.03 @ 13:36:09 Player: 3.14 Result: Destroyed by G-47 Trooper with Particle Gun Performance ------------- Evolutions (2) 1000 Regions Visited (4) 800 Robots Destroyed (60) 300 Value Destroyed (1936) 1936 Prototype IDs (0) 0 Alien Tech Used (0) 0 Bonus (0) 0 TOTAL SCORE: 4036 Bonus ------- None Cogmind --------- Core Integrity 0/550 Matter 166/300 Energy 150/160 System Corruption 0% Temperature Cool (9) Movement Walking (120) Location -8/Materials Parts ------- > --- POWER (3) -------- Light Nuclear Core > --- PROPULSION (3) --- Aluminum Leg Aluminum Leg Improved Aluminum Leg > --- UTILITY (2) ------ Visual Processing Unit > --- WEAPON (3) ------- Particle Gun Datajack > --- INVENTORY (5) ---- Aluminum Leg Structural Scanner Medium Laser Particle Gun Peak State ------------ > --- POWER ------------ Ion Engine Improved Ion Engine Light Nuclear Core > --- PROPULSION ------- Aluminum Leg Aluminum Leg Aluminum Leg > --- UTILITY ---------- High-capacity Storage Unit Visual Processing Unit > --- WEAPON ----------- Medium Laser Light Assault Rifle High-powered Shotgun > --- INVENTORY -------- Light Treads Light Treads Improved Aluminum Leg Structural Scanner Medium Laser Small Laser Small Laser Beam Rifle Particle Gun Datajack [Rating: 18] Favorites ----------- Power Light Ion Engine Engine Light Ion Engine Power Core Light Nuclear Core Propulsion Aluminum Leg Treads Light Treads Leg Aluminum Leg Wheel Compact Wheel Utility High-capacity Storage Unit Device Terrain Scanner Storage High-capacity Storage Unit Processor Visual Processing Unit Weapon Small Laser Energy Gun Small Laser Energy Cannon Particle Cannon Ballistic Gun Light Assault Rifle Ballistic Cannon Light Cannon Special Melee Weapon Datajack Build | -11 -10 -9 -9 -8 ------- Run | Scr Mat Mat Sto Mat Slots Evolved 4 | . . 2 . 2 Power 2 | . . 1 . 1 Propulsion 1 | . . . . 1 Utility . | . . . . . Weapon 1 | . . 1 . . Parts Attached 59 | 6 6 13 9 25 Power 11 | 1 1 4 1 4 Engine 9 | 1 1 4 1 2 Core 2 | . . . . 2 Reactor . | . . . . . Propulsion 18 | 2 1 4 3 8 Treads 3 | . . . 1 2 Leg 10 | . . 2 2 6 Wheel 5 | 2 1 2 . . Hover . | . . . . . Flight . | . . . . . Utility 4 | 1 2 . 1 . Device 1 | . 1 . . . Storage 2 | 1 1 . . . Processor 1 | . . . 1 . Hackware . | . . . . . Protection . | . . . . . Artifact . | . . . . . Weapon 26 | 2 2 5 4 13 Energy Gun 19 | 1 1 4 4 9 Energy Cannon 1 | . . 1 . . Ballistic Gun 4 | 1 . . . 3 Ballistic Cannon 1 | . 1 . . . Launcher . | . . . . . Special Weapon . | . . . . . Impact Weapon . | . . . . . Slashing Weapon . | . . . . . Piercing Weapon . | . . . . . Special Melee Weapon 1 | . . . . 1 Unidentified Prototypes . | . . . . . Parts Lost 28 | . . 8 2 18 Power 9 | . . 3 1 5 Propulsion 9 | . . 2 1 6 Utility 1 | . . . . 1 Weapon 9 | . . 3 . 6 Highest Loss Streak 10 | . . 6 2 10 To Critical Strikes . | . . . . . Average Slot Usage (%) 87 | . 99 83 90 80 Engine 16 | . 14 15 21 15 Leg 13 | . . 9 21 18 Wheel 7 | . 28 10 . . Device 4 | . 13 7 . . Storage 10 | . 14 11 11 8 Processor 4 | . . . 5 9 Energy Gun 17 | . 14 17 23 13 Energy Cannon 3 | . . 6 7 . Ballistic Gun 4 | . 8 . . 9 Ballistic Cannon 2 | . 5 4 . . Naked Turns . | . . . . . Heaviest Build 63 | 12 49 56 54 63 Greatest Support 40 | 32 32 26 20 40 Greatest Overweight (x) 16 | . 1 16 4 15 Average Overweight (x) 1 | . . 2 2 2 Largest Inventory Capacity 20 | 8 20 20 20 20 Average Capacity 19 | 7 17 20 20 18 Most Carried 13 | 5 9 12 12 13 Average Carried 8 | 2 6 8 9 8 Final Capacity 20 | 8 20 20 20 5 Final Carried 12 | 3 8 12 10 4 Class Distribution -------------------- 35% | Mutant 28% | Scavenger-Skirmisher 11% | Skirmisher 8% | Gunner 8% | Scavenger-Mutant 7% | Scavenger-Gunner Dominant Class ---------------- Mutant | -10/Materials Skirmisher | -9/Materials Scavenger-Skirmisher | -9/Storage Scavenger-Skirmisher | -8/Materials Resources | -11 -10 -9 -9 -8 ----------- Run | Scr Mat Mat Sto Mat Matter Collected 1213 | 80 201 428 41 463 Remotely . | . . . . . Salvage Created 2208 | . 293 721 289 905 Parts 110 | . 23 33 14 40 Haulers Intercepted 1 | . . . 1 . Recyclers Shooed 3 | . 1 . . 2 Parts Field Recycled . | . . . . . Retrieved Matter . | . . . . . Parts Self-Destructed . | . . . . . Prevented . | . . . . . Kills | -11 -10 -9 -9 -8 ------- Run | Scr Mat Mat Sto Mat Combat Hostiles Destroyed 51 | . 8 16 6 21 Guns 36 | . 7 6 2 21 Cannons 15 | . 1 10 4 . Classes Destroyed 8 | . 4 3 1 . Worker 1 | . . 1 . . Hauler 1 | . . . 1 . Recycler 2 | . 1 . . 1 Watcher 5 | . 3 . 1 1 Swarmer 10 | . 6 . 1 3 Grunt 32 | . 2 11 4 15 Duelist 1 | . . 1 . . Sentry 8 | . . 4 1 3 Best Kill Streak 10 | . 5 10 4 5 Combat Bots Only 9 | . 3 9 3 5 Max Kills in Single Turn 2 | . 2 1 1 1 Gunslinging . | . . . . . Exploded . | . . . . . Melee . | . . . . . Uniques/NPCs Destroyed . | . . . . . Combat | -11 -10 -9 -9 -8 -------- Run | Scr Mat Mat Sto Mat Damage Taken 3117 | . 200 771 146 2000 Core 842 | . 40 220 24 558 Absorbed by Shields . | . . . . . Core Remaining (%) 74 | 100 84 . 39 . Volleys Fired 144 | . 20 35 17 72 Largest 3 | . 2 3 3 3 Hottest 148 | . 85 148 148 135 Shots Fired 334 | . 40 82 46 166 Gun 275 | . 34 46 29 166 Cannon 59 | . 6 36 17 . Launcher . | . . . . . Special . | . . . . . Kinetic 116 | . 20 17 . 79 Thermal 218 | . 20 65 46 87 Explosive . | . . . . . Electromagnetic . | . . . . . Robot Hit Streak 26 | . 7 26 12 18 Robot Miss Streak 4 | . 2 2 2 4 Penetration Max . | . . . . . Secondary Targets 3 | . 2 . . 1 Max Gunslinging Chain 1 | . 1 . . 1 Shots Hit Robots 247 | . 26 64 29 128 Core Hits 115 | . 17 28 13 57 Critical Kills 1 | . . . . 1 Critical Parts Destroyed . | . . . . . Critical Strikes 11 | . . 3 . 8 Burn 9 | . . 2 . 7 Destroy 1 | . . . . 1 Blast 1 | . . 1 . . Melee Attacks 2 | . . . . 2 Impact . | . . . . . Slashing . | . . . . . Piercing . | . . . . . Sneak Attacks . | . . . . . Combat Hostiles . | . . . . . Follow-up Attacks . | . . . . . Damage Inflicted 3783 | . 331 1025 467 1960 Guns 2871 | . 243 434 234 1960 Cannons 905 | . 88 591 226 . Explosions . | . . . . . Melee . | . . . . . Ramming 7 | . . . 7 . Kinetic 1466 | . 171 244 . 1051 Thermal 2310 | . 160 781 460 909 Explosive . | . . . . . Electromagnetic . | . . . . . Impact . | . . . . . Slashing . | . . . . . Piercing . | . . . . . Highest Corruption 1 | . 1 . . . Average Corruption 1 | . 1 . . . Corruption Purged . | . . . . . Corruption Blocked . | . . . . . Overload Shots . | . . . . . Overflow Damage 14 | . 14 . . . Projectiles 14 | . 14 . . . Explosions . | . . . . . Melee . | . . . . . Knockbacks 3 | . 1 2 . . Impact . | . . . . . Kinetic 3 | . 1 2 . . Secondary . | . . . . . Self-Inflicted Damage . | . . . . . Shots . | . . . . . Rammed . | . . . . . Targets Rammed 1 | . . . 1 . Kicked 1 | . . . 1 . Crushed . | . . . . . Highest Temperature 718 | . 144 718 357 692 Average Temperature 237 | . 48 313 172 259 Received Heat Transfer 1965 | . 108 426 90 1341 Effects 98 | . . 40 4 54 Shutdowns 20 | . . 9 1 10 Energy Bleed 11 | . . 5 1 5 Interference 19 | . . 5 2 12 Matter Decay 12 | . . 4 . 8 Short Circuit 10 | . . 4 . 6 Damage (minor) 3 | . . 2 . 1 Damage (major) 20 | . . 10 . 10 Damage (core) 3 | . . 1 . 2 Siege Activations . | . . . . . Robots Corrupted . | . . . . . Combat Hostiles . | . . . . . Parts Fried . | . . . . . Impact Corruptions . | . . . . . Robots Melted . | . . . . . Combat Hostiles . | . . . . . Parts Melted 12 | . 1 4 . 7 Heat Transferred 6305 | . 469 1953 932 2951 Parts Sabotaged . | . . . . . Parts Stolen . | . . . . . Parts Stripped . | . . . . . Power Chain Reactions . | . . . . . Missiles Intercepted . | . . . . . Alert | -11 -10 -9 -9 -8 ------- Run | Scr Mat Mat Sto Mat Peak Influence 399 | . 231 395 265 399 Initial 88 | . . 82 88 23 Average 196 | . 136 235 191 217 Maximum Alert Level 1 | . 1 1 1 1 Low Security (%) 44 | 100 63 40 42 33 Level 1 55 | . 36 59 57 66 Level 2 . | . . . . . Level 3 . | . . . . . Level 4 . | . . . . . Level 5 . | . . . . . High Security . | . . . . . Max Security . | . . . . . Squads Dispatched 5 | . . 1 1 3 Investigation 2 | . . 1 . 1 Extermination . | . . . . . Reinforcement 3 | . . . 1 2 Assault . | . . . . . Garrison . | . . . . . Intercept . | . . . . . Searches Triggered . | . . . . . Construction Impeded . | . . . . . Haulers Reinforced . | . . . . . Active Scanning Responses . | . . . . . Cargo Convoy Interrupts . | . . . . . Stealth | -11 -10 -9 -9 -8 --------- Run | Scr Mat Mat Sto Mat Distress Signals 3 | . . 1 1 1 Communications Jammed . | . . . . . Distress Signals . | . . . . . Times Spotted 67 | . 11 22 8 26 Peak Tracking Total 8 | . 3 8 3 5 Tactical Retreats 2 | . . 1 . 1 Traps | -11 -10 -9 -9 -8 ------- Run | Scr Mat Mat Sto Mat Traps Triggered 4 | . 1 . 2 1 Indirectly . | . . . . . Trap Hack Attempts . | . . . . . Triggered . | . . . . . Disarmed . | . . . . . Reprogrammed . | . . . . . Reused . | . . . . . Traps Extracted . | . . . . . Installed . | . . . . . Triggered . | . . . . . Machines | -11 -10 -9 -9 -8 ---------- Run | Scr Mat Mat Sto Mat Machines Disabled . | . . . . . Max in Single Turn . | . . . . . Machines Sabotaged . | . . . . . Garrisons Compromised . | . . . . . Overloaded Fab Kills . | . . . . . Hacking | -11 -10 -9 -9 -8 --------- Run | Scr Mat Mat Sto Mat Machines Accessed 2 | . 1 1 . . Terminals 1 | . . 1 . . Fabricators . | . . . . . Repair Stations . | . . . . . Recycling Units 1 | . 1 . . . Scanalyzers . | . . . . . Garrison Access . | . . . . . Total Hacks 5 | . 1 4 . . Successful 1 | . 1 . . . Failed 4 | . . 4 . . Catastrophic . | . . . . . Database Lockouts . | . . . . . Manual . | . . . . . Terminals 4 | . . 4 . . Fabricators . | . . . . . Repair Stations . | . . . . . Recycling Units 1 | . 1 . . . Scanalyzers . | . . . . . Garrison Access . | . . . . . Terminal Hacks . | . . . . . Fabricator Hacks . | . . . . . Repair Station Hacks . | . . . . . Recycling Unit Hacks 1 | . 1 . . . Report Inventory 1 | . 1 . . . Scanalyzer . | . . . . . Garrison Access Hacks . | . . . . . Unauthorized Hacks . | . . . . . Terminals . | . . . . . Fabricators . | . . . . . Repair Stations . | . . . . . Recycling Units . | . . . . . Scanalyzers . | . . . . . Garrison Access . | . . . . . Data Cores Recovered . | . . . . . Used . | . . . . . Hacking Detections 1 | . . 1 . . Full Trace Events 1 | . . 1 . . Feedback Events . | . . . . . Feedback Blocked . | . . . . . Robot Schematics Acquired . | . . . . . Robots Built . | . . . . . Authchips . | . . . . . Time . | . . . . . Total Robot Build Rating . | . . . . . Part Schematics Acquired . | . . . . . Parts Built . | . . . . . Authchips . | . . . . . Time . | . . . . . Total Part Build Rating . | . . . . . Parts Repaired . | . . . . . Time . | . . . . . Parts Recycled . | . . . . . Recycled Matter . | . . . . . Retrieved Matter . | . . . . . Retrieved Components . | . . . . . Parts Scanalyzed . | . . . . . Part Schematics Acquired . | . . . . . Parts Damaged . | . . . . . Bothacking | -11 -10 -9 -9 -8 ------------ Run | Scr Mat Mat Sto Mat Used RIF Installer . | . . . . . Robots Hacked 1 | . . . . 1 Non-combat . | . . . . . Combat 1 | . . . . 1 Robot Hacks Applied 2 | . . . . 2 parse_system 2 | . . . . 2 Relay Couplers Released . | . . . . . Fabnet Peak Effective % . | . . . . . Robots Rewired . | . . . . . Allies Hacked . | . . . . . Hacks Repelled . | . . . . . Allies | -11 -10 -9 -9 -8 -------- Run | Scr Mat Mat Sto Mat Total Allies . | . . . . . Largest Group . | . . . . . Highest-Rated Group . | . . . . . Highest-Rated Ally . | . . . . . Total Orders . | . . . . . Ally Attacks . | . . . . . Total Damage . | . . . . . Kills . | . . . . . Allies Corrupted . | . . . . . Allies Melted . | . . . . . Intel | -11 -10 -9 -9 -8 ------- Run | Scr Mat Mat Sto Mat Robot Analysis Total . | . . . . . Derelict Logs Recovered . | . . . . . Drone Launches . | . . . . . Drone Recoveries . | . . . . . Exploration | -11 -10 -9 -9 -8 ------------- Run | Scr Mat Mat Sto Mat Turns Passed 1935 | 47 336 535 464 553 Spaces Moved 760 | 36 238 217 150 119 Core 21 | 9 . 4 . 8 Treads 2 | . . . . 2 Legs 337 | . . 78 150 109 Wheels 400 | 27 238 135 . . Hover . | . . . . . Flight . | . . . . . Fastest Speed 50 | 50 100 120 260 50 Average Speed 181 | 87 108 185 261 247 Slowest Speed 850 | 100 115 850 400 800 Overloaded Moves . | . . . . . Propulsion Burnouts . | . . . . . Robots Hopped . | . . . . . Cave-ins Triggered . | . . . . . Exploration Rate (%) 25 | 3 48 19 42 15 Regions Visited 4 Branch Regions 1 Pre-discovered Areas . | . . . . . Known Exits Taken . | . . . . . Unknown Exits Taken 4 | 1 1 1 1 . Scrap Searched . | . . . . . Spaces Dug . | . . . . . Terrain Destroyed . | . . . . . Melee . | . . . . . Projectile . | . . . . . AOE . | . . . . . Terrain Rammed . | . . . . . Walls Destroyed . | . . . . . Machines Disabled . | . . . . . Actions | -11 -10 -9 -9 -8 --------- Run | Scr Mat Mat Sto Mat Total 1052 | 52 281 286 186 247 Wait 13 | . 2 1 . 10 Move 756 | 35 237 216 149 119 Hop . | . . . . . Pick Up 58 | 10 11 17 6 14 Fast Attach . | . . . . . Attach 55 | 6 6 13 9 21 Detach 2 | . . . 1 1 Swap 4 | . . . . 4 Drop 17 | 1 5 4 3 4 Fire 144 | . 20 35 17 72 Melee 2 | . . . . 2 Ram . | . . . . . Kick 1 | . . . 1 . Crush . | . . . . . Escape Stasis . | . . . . . Rewire . | . . . . . Trap . | . . . . . Miscellaneous . | . . . . . Route ------- -11/Scrapyard -10/Materials (discovered 2 exits: *Mat / [*Min]) -9/Materials -9/Storage -8/Materials History --------- Turn | Location | Event 6 | -11/Scrapyard | Discovered new exit (range 16) 48 | -11/Scrapyard | Entered Materials 202 | -10/Materials | Discovered new exit (range 13) 316 | -10/Materials | Build established: Mutant 369 | -10/Materials | Discovered new exit (range 5) 384 | -10/Materials | Entered another Materials area 384 | -9/Materials | Evolved 2 slots: Power x1, Weapon x1 650 | -9/Materials | Destroyed 9 combat bots 664 | -9/Materials | Lost 6 parts (2p1n3w) 665 | -9/Materials | Core integrity fell below 50% 891 | -9/Materials | Discovered new exit (range 6) 919 | -9/Materials | Entered Storage 1365 | -9/Storage | Discovered new exit (range 7) 1383 | -9/Storage | Entered Materials 1383 | -8/Materials | Evolved 2 slots: Power x1, Propulsion x1 1423 | -8/Materials | Build established: Scavenger-Skirmisher 1776 | -8/Materials | Lost 4 parts (1p2n1w) 1790 | -8/Materials | Core integrity fell below 50% 1855 | -8/Materials | Core integrity fell below 20% 1927 | -8/Materials | Lost 10 parts (2p2n1u5w) 1936 | -8/Materials | Destroyed by G-47 Trooper with Particle Gun Last Messages --------------- 01902_ Acquired Lgt. Nuclear Core. 01905_ Acquired 56 matter. 01908_ Acquired Aluminum Leg. 01911_ Acquired Particle Gun. 01912_ R-06 Scavenger collects Imp. Heat Sink. 01920_ Jacked G-47 Trooper... Right-click on available options for more info. Keyboard players can use Shift-a~z. >>parse_system Reading system data... 01924_ Jacked G-47 Trooper... >>parse_system Reading system data... 01927_ Acquired Broken Particle Gun. 01930_ K-01 Serf collects debris. 01930_ Acquired Aluminum Leg. 01932_ Acquired Broken Med. Laser. 01934_ K-01 Serf cleans the Terminal. 01935_ Acquired Particle Gun. 01936_ Dropped Broken Particle Gun. Map ----- +----------------------------------------------------+ | ??????????????????????????????? | | ??????????????????????????????? | | ??????????????????????????????? | | ??????????????????????????????? | | ??????????????????????????????? | | ??????????????????????????????? | | ??????????????????????????????? | | ??????????????????????????????? | | ??????????????????????????????? | | ??????????????????????????????? | | ??????????????????????????????? | | ??????????????????????????????? | | ??????????????????????????????? | | ??????????????????????????????? | | ??????????????????????????????? | | ??????????????????????????????? | | ??????????????????????????????? | | ??????????????????????????????? | | ??????????????????????????????? | | ??????????????????????????????? | | ??????????????????????????????? | | ??????????????????????????????? | | ??????????????????????????????? | | ???????????????????????#??????? | | ?##########??????????? #??????? | | # "T" @ !!#######???? #??????? | | # k!*kg # ! #### #??????? | | # """ """ # #??????? | | # """ """!+ T #??????? | | # """ """[# = #??????? | | # %=#=% ########??????? | | # / =[## ###########????? | | # ! ## # #????? | | ## ######### # #????? | | ?##????????# + """ #????? | | ???????????# # """"" #????? | | ???????????# # """"" #????? | | ???######### # """"" #????? | | ?# """ """ # # """ #????? | | ?# """ """ # # #????? | | ?# """ """=#% ###########????? | | ?# / #??????????????? | | ?# %=# #??????????????? | | ?# # #??????????????? | | ?# ! # ########???????? | | ?# # # #???????? | | ?########### # """ #???????? | | ???????????# # """ #???????? | | ???????????# # """ #???????? | | ???????????# #[!=== #???????? | +----------------------------------------------------+ Best States ------------- Heat Dissipation 31 Energy Generation 26 Energy Capacity 475 Matter Stores 300 Matter Capacity 300 Sight Range 18 Terrain Scan Range 14 Terrain Scan Density 10 Resistance: KI 20 Resistance: TH 20 Resistance: EX 20 Resistance: EM 20 Resistance: I 20 Resistance: S 20 Resistance: P 20 Evasion (%) 50 Recoil Reduction 2 Offensive Hacking 10 Item Schematics ----------------- None Robot Schematics ------------------ None Fabricated ------------ Nothing Alien Tech Used ----------------- None Achievements -------------- None Challenges ------------ None Game ------ Seed GreatBlastMegatreads Manual? 0 Play Time 00:21:37 Cumulative 10.7 hours Start 2023.02.03 @ 13:17:02 End 2023.02.03 @ 13:36:09 Sessions 1 Manual Loads 0 Difficulty Adventurer Special Mode None Game No. 23 Rogue 9 Adventurer 14 Explorer 0 Win Type - Total 0 Types 0/0/0/0/0/0/0/0/0 Lore% 18 Gallery% 18 Achievement% 16 Wizard Run 0 Options --------- ASCII 0 Keyboard 0 Movement Mouse Keybinds 0 Fullscreen 1 Font 12/Terminus Map View 83x54 Tactical HUD 1 Map Filters NONE Filters NONE Steam 0 RUN: ffca4518-ff5b-4115-9e83-c3cad1a2aa59